bitfinex/quotes_SOLUSD_20240716
["timestamp","ask_amount","ask_price","bid_price","bid_amount"]
[1721167749725,6.2508,159.98,159.92,16.4293]
[1721167750039,6.2508,159.98,159.93,6.2523]
[1721167750223,6.2512,159.97,159.9,6.2097]
[1721167750418,34.3727,160.03,159.93,6.2527]
[1721167750621,18.75,160.01,159.9,6.2097]
[1721167750850,72.47,160.0,159.9,6.2097]
[1721167751142,15.6265,159.99,159.9,6.2097]
[1721167751324,20.0,159.98,159.87,22.4635]
[1721167751521,20.0,159.98,159.88,1.25056892]
[1721167752037,20.0,159.99,159.94,6.2522]
[1721167752245,6.2504,159.99,159.95,6.2518]
[1721167752423,33.72,160.04,159.9,10.0]
[1721167752625,6.25,160.0,159.95,6.2518]
[1721167752946,6.2503,160.0,159.96,0.17]
[1721167753326,6.2503,160.0,159.96,6.4214]
[1721167753523,6.2503,160.0,159.96,0.17]
[1721167754134,34.3735,160.02,159.86,10.0]
[1721167754340,6.2508,159.98,159.93,6.2526]
[1721167754530,6.2511,159.97,159.93,6.2526]
[1721167754937,6.2504,159.99,159.92,0.34]
[1721167755141,6.2512,159.97,159.92,0.34]
[1721167755355,6.2508,159.98,159.92,0.34]
[1721167755761,6.2508,159.98,159.93,6.2526]
[1721167756048,6.2508,159.98,159.94,0.34]
[1721167756244,20.0,160.01,159.94,0.17]
[1721167756451,38.75,160.02,159.94,0.17]
[1721167756639,6.2505,159.99,159.94,6.422]
[1721167756947,6.251,159.98,159.93,6.4226]
[1721167757247,6.2514,159.97,159.84,10.0]
[1721167757445,38.75,160.02,159.84,10.0]
[1721167757446,34.375,160.0,159.84,10.0]
[1721167757622,6.2512,159.97,159.93,6.2525]
[1721167758048,6.2508,159.98,159.86,10.0]
[1721167758321,6.2512,159.97,159.93,6.2526]
[1721167758541,6.2508,159.98,159.94,0.17]
[1721167758728,52.47,160.01,159.87,1.25051362]
[1721167758944,6.2514,159.97,159.92,6.253]
[1721167759449,52.47,160.01,159.84,10.0]
[1721167759752,6.2512,159.97,159.92,6.2529]
[1721167760048,6.2504,159.99,159.95,6.2519]
[1721167761059,20.0,160.0,159.96,6.4214]
[1721167761352,38.1872,160.05,159.93,1.42037577]
[1721167761353,22.5667,160.05,159.95,0.17]
[1721167761552,33.72,160.08,160.0,6.2497]
[1721167761728,6.2485,160.04,159.99,0.17]
[1721167761928,6.2485,160.04,159.94,0.17]
[1721167762131,6.2489,160.03,159.94,0.17]
[1721167762455,6.2489,160.03,159.99,6.2503]
[1721167762755,6.2485,160.04,159.98,0.17]
[1721167762941,6.2496,160.01,159.96,6.2513]
[1721167763327,6.2496,160.01,159.97,6.2511]
[1721167763527,52.47,160.05,159.91,6.0983]
[1721167763831,6.25,160.0,159.95,6.2518]
[1721167764032,6.2519,159.95,159.9,22.1962]
[1721167764249,6.2526,159.94,159.89,6.254]
[1721167764449,18.75,159.99,159.87,12.85586755]
[1721167764628,6.2534,159.92,159.87,6.2547]
[1721167764949,6.2534,159.92,159.87,6.255]
[1721167765454,6.2534,159.92,159.88,6.2545]
[1721167765649,6.2534,159.92,159.87,6.255]
[1721167766337,6.2535,159.91,159.87,6.255]
[1721167766539,6.2531,159.92,159.87,6.255]
[1721167767248,6.2531,159.92,159.88,6.2546]
[1721167767636,68.0987,159.97,159.85,6.50606198]
[1721167767962,20.0,159.96,159.86,1.59090915]
[1721167768351,6.2527,159.93,159.87,6.2546]
[1721167768652,6.2531,159.92,159.88,6.5946]
[1721167768859,6.2527,159.93,159.88,6.4246]
[1721167769163,6.2527,159.93,159.89,6.2542]
[1721167769463,6.2523,159.95,159.89,6.2542]
[1721167769652,20.0,159.94,159.9,0.17]
[1721167769860,20.0,159.96,159.9,6.4237]
[1721167770164,33.72,159.97,159.9,0.17]
[1721167770340,39.9712,159.97,159.92,6.253]
[1721167771344,26.2516,159.96,159.92,6.253]
[1721167771545,26.2516,159.96,159.91,6.4234]
[1721167771764,26.2516,159.96,159.92,0.17]
[1721167772647,39.9712,159.97,159.92,6.423]
[1721167772861,6.2512,159.97,159.92,6.423]
[1721167773155,6.2512,159.97,159.93,6.2526]
[1721167773332,6.2509,159.98,159.92,0.17]
[1721167773534,6.2516,159.96,159.92,0.17]
[1721167773759,6.2511,159.98,159.92,6.423]
[1721167774062,6.2511,159.98,159.93,6.2525]
[1721167774435,18.75,160.0,159.92,6.4231]
[1721167774641,20.0,159.99,159.92,0.17]
[1721167774840,6.2508,159.98,159.93,6.2524]
[1721167776237,6.2514,159.97,159.92,6.423]
[1721167776440,6.2514,159.97,159.93,6.2526]
[1721167776752,6.2528,159.93,159.86,6.50774807]
[1721167776961,6.2537,159.91,159.86,12.76284807]
[1721167777142,6.2532,159.92,159.81,10.0]
[1721167777337,6.2531,159.92,159.88,6.2546]
[1721167777537,6.2531,159.92,159.87,6.255]
[1721167778553,6.2536,159.91,159.86,6.2554]
[1721167779067,64.4603,159.95,159.85,6.2558]
[1721167779068,6.2539,159.9,159.85,6.2558]
[1721167779270,30.08,159.98,159.84,6.50921111]
[1721167779271,48.83,159.92,159.84,6.50921111]
[1721167779446,6.254,159.9,159.85,6.2556]
[1721167780157,6.254,159.9,159.86,6.2553]
[1721167780356,30.08,159.92,159.84,7.76039319]
[1721167780565,6.2544,159.89,159.85,0.17]
[1721167780748,6.2539,159.9,159.85,6.4257]
[1721167780956,6.2543,159.89,159.85,6.4257]
[1721167781167,6.2543,159.89,159.85,0.17]
[1721167781374,6.2543,159.89,159.85,6.4258]
[1721167781659,6.2548,159.88,159.8,6.0526]
[1721167781866,38.75,159.91,159.8,12.5600958]
[1721167782060,6.2542,159.9,159.85,6.2558]
[1721167782591,6.2551,159.87,159.8,12.5600958]
[1721167782753,6.2551,159.87,159.83,6.2565]
[1721167782953,6.2546,159.88,159.83,6.2565]
[1721167783150,6.2546,159.88,159.84,6.2561]
[1721167783472,6.255,159.87,159.83,6.2566]
[1721167783783,30.08,159.9,159.8,12.5600958]
[1721167783784,6.2559,159.85,159.8,12.5600958]
[1721167783949,6.2558,159.85,159.8,12.7651958]
[1721167784154,30.08,159.87,159.8,6.5074958]
[1721167784155,36.3351,159.87,159.8,6.5074958]
[1721167784378,30.08,159.87,159.82,6.2569]
[1721167784594,36.3351,159.87,159.82,6.2569]
[1721167784880,36.3351,159.87,159.83,6.2566]
[1721167785453,30.08,159.87,159.83,6.2566]
[1721167785650,30.08,159.87,159.8,6.5074958]
[1721167785854,6.2551,159.87,159.83,6.2565]
[1721167786255,6.2551,159.87,159.82,6.2569]
[1721167786486,6.2555,159.86,159.82,6.2569]
[1721167786652,6.2555,159.86,159.81,0.34]
[1721167786976,30.08,159.89,159.81,6.5973]
[1721167787181,6.2555,159.86,159.82,6.2569]
[1721167787884,6.2551,159.87,159.82,6.2569]
[1721167788269,36.3344,159.89,159.84,6.2559]
[1721167788469,26.2547,159.88,159.83,6.4266]
[1721167788675,6.2547,159.88,159.83,6.2566]
[1721167788995,30.08,159.89,159.79,0.828697]
[1721167788996,6.2551,159.87,159.82,6.2568]
[1721167789161,6.2551,159.87,159.83,6.2566]
[1721167790187,6.2547,159.88,159.84,6.2561]
[1721167790378,6.2551,159.87,159.82,6.2567]
[1721167791170,6.2551,159.87,159.79,0.828697]
[1721167791171,30.08,159.86,159.79,0.828697]
[1721167791364,30.08,159.8,159.79,0.828697]
[1721167791956,30.08,159.8,159.79,7.086897]
[1721167792159,30.08,159.8,159.79,0.828697]
[1721167794488,6.2567,159.83,159.79,0.828697]
[1721167794703,30.08,159.81,159.79,0.828697]
[1721167795871,36.3374,159.81,159.79,0.828697]
[1721167796205,6.2578,159.8,159.79,0.828697]
[1721167796372,26.2578,159.8,159.79,0.828697]
[1721167796694,20.0,159.8,159.79,0.828697]
[1721167797104,26.2578,159.8,159.79,0.828697]
[1721167797390,30.08,159.81,159.79,7.086897]
[1721167797592,6.2567,159.83,159.79,0.828697]
[1721167798290,36.3378,159.8,159.79,0.828697]
[1721167798487,55.0878,159.8,159.79,0.828697]
[1721167798682,75.0878,159.8,159.79,0.828697]
[1721167798888,6.2589,159.77,159.76,0.03931066]
[1721167799069,36.3389,159.77,159.76,0.03931066]
[1721167799275,55.0889,159.77,159.76,0.03931066]
[1721167799470,36.3389,159.77,159.76,0.03931066]
[1721167799695,6.2585,159.79,159.76,0.03931066]
[1721167799891,30.08,159.77,159.76,0.03931066]
[1721167800387,36.3389,159.77,159.76,0.03931066]
[1721167801368,75.0889,159.77,159.76,0.03931066]
[1721167801777,50.08,159.77,159.76,0.03931066]
[1721167801974,56.3389,159.77,159.76,0.03931066]
[1721167802185,30.08,159.77,159.76,0.03931066]
[1721167802393,45.4711,159.81,159.76,0.03931066]
[1721167802692,45.4711,159.81,159.76,6.29861066]
[1721167802889,45.4711,159.81,159.77,6.2589]
[1721167803190,6.2586,159.78,159.76,0.03931066]
[1721167803396,6.2589,159.77,159.76,0.03931066]
[1721167803697,30.08,159.78,159.76,0.03931066]
[1721167803888,6.2589,159.77,159.76,0.03931066]
[1721167804294,45.0089,159.77,159.76,0.03931066]
[1721167804596,6.2601,159.74,159.73,10.0]
[1721167804787,36.3401,159.74,159.73,10.0]
[1721167804992,55.0901,159.74,159.73,10.0]
[1721167805197,75.0901,159.74,159.73,10.0]
[1721167805404,6.2613,159.71,159.7,56.0]
[1721167805898,36.3413,159.71,159.7,56.0]
[1721167806083,50.08,159.71,159.7,56.0]
[1721167806587,6.302,159.74,159.7,56.0]
[1721167806588,30.08,159.74,159.71,6.2612]
[1721167806795,30.08,159.77,159.73,6.2605]
[1721167806972,30.08,159.77,159.7,56.0]
[1721167807687,6.2594,159.76,159.7,62.2617]
[1721167808090,6.2599,159.75,159.7,62.2617]
[1721167808285,6.2593,159.76,159.71,6.2612]
[1721167808487,18.75,159.81,159.75,6.2596]
[1721167808686,55.0878,159.81,159.74,6.2598]
[1721167809001,30.08,159.81,159.76,6.2592]
[1721167809208,30.08,159.81,159.72,0.17]
[1721167809499,30.08,159.81,159.71,0.34]
[1721167809675,30.08,159.81,159.72,21.7298]
[1721167809877,36.3366,159.84,159.79,6.2578]
[1721167810079,30.08,159.84,159.73,0.34]
[1721167810379,22.4017,159.85,159.73,0.34]
[1721167810380,33.9,159.87,159.73,0.34]
[1721167810595,18.75,159.88,159.73,0.34]
[1721167810904,25.0049,159.88,159.75,10.0]
[1721167811104,25.0049,159.88,159.76,0.34]
[1721167811410,6.2551,159.87,159.82,6.2569]
[1721167811611,18.75,159.9,159.76,0.34]
[1721167811784,6.2568,159.83,159.78,6.2585]
[1721167811987,18.75,159.88,159.79,6.258]
[1721167812310,18.75,159.88,159.76,0.17]
[1721167812480,18.75,159.88,159.8,6.2576]
[1721167812680,15.6386,159.86,159.72,21.7298]
[1721167812894,6.2562,159.84,159.79,6.2581]
[1721167813198,18.75,159.85,159.73,0.17]
[1721167813199,6.2567,159.83,159.78,6.2585]
[1721167813382,6.2562,159.84,159.79,6.2581]
[1721167813584,20.0,159.85,159.73,0.17]
[1721167813783,6.2557,159.86,159.81,6.2572]
[1721167813992,20.0,159.85,159.81,6.2572]
[1721167814285,6.2548,159.88,159.82,6.257]
[1721167814488,20.0,159.87,159.83,6.2566]
[1721167814696,22.4893,159.91,159.76,11.25140529]
[1721167814907,6.2546,159.89,159.77,0.34]
[1721167815216,6.2547,159.88,159.83,6.2566]
[1721167815390,6.2546,159.89,159.83,6.2566]
[1721167815580,22.4893,159.91,159.85,6.2558]
[1721167815775,6.2542,159.9,159.85,6.2558]
[1721167816200,41.2393,159.91,159.82,0.17]
[1721167816504,6.2562,159.84,159.79,6.2581]
[1721167816804,18.75,159.89,159.8,1.42144452]
[1721167817013,20.0,159.88,159.8,0.17]
[1721167817302,6.2554,159.86,159.82,6.257]
[1721167817709,6.2551,159.87,159.83,6.2566]
[1721167817909,6.2552,159.87,159.81,6.2571]
[1721167818084,38.75,159.88,159.77,22.8522]
[1721167818288,38.75,159.88,159.73,22.8522]
[1721167818809,6.2567,159.83,159.78,6.2585]
[1721167820103,6.2563,159.84,159.79,6.2581]
[1721167820590,6.257,159.82,159.77,6.2589]
[1721167820989,6.2575,159.81,159.76,6.2593]
[1721167821305,6.2589,159.78,159.72,6.2608]
[1721167821611,33.9,159.79,159.7,56.0]
[1721167821783,6.2591,159.77,159.7,56.0]
[1721167821985,6.2598,159.75,159.7,56.0]
[1721167822184,52.65,159.79,159.7,56.0]
[1721167822185,18.75,159.77,159.7,56.0]
[1721167822388,6.2613,159.72,159.7,56.0]
[1721167822600,6.2606,159.73,159.7,56.0]
[1721167822803,33.9,159.75,159.7,56.0]
[1721167823122,6.261,159.72,159.7,56.0]
[1721167823305,22.2583,159.78,159.7,56.0]
[1721167823507,33.9,159.79,159.75,6.2597]
[1721167823696,6.2574,159.81,159.76,6.2593]
[1721167823901,6.2583,159.79,159.75,6.2597]
[1721167824103,34.8073,159.82,159.76,6.2593]
[1721167824489,34.8073,159.82,159.7,56.0]
[1721167824714,16.0573,159.82,159.71,1.59192761]
[1721167825022,24.951,159.83,159.71,0.34]
[1721167825323,6.2583,159.79,159.74,6.2598]
[1721167825496,6.2579,159.8,159.73,0.17]
[1721167825812,24.951,159.83,159.71,0.34]
[1721167825986,40.5932,159.83,159.74,6.26]
[1721167826512,6.2589,159.78,159.73,6.2603]
[1721167826715,6.259,159.77,159.73,6.2603]
[1721167826889,6.2598,159.75,159.7,56.0]
[1721167827088,6.2594,159.76,159.71,6.2612]
[1721167827388,6.2605,159.74,159.7,56.0]
[1721167827597,18.75,159.77,159.7,56.0]
[1721167827802,6.2605,159.74,159.7,56.0]
[1721167827994,6.2598,159.75,159.7,62.2617]
[1721167828407,6.2597,159.75,159.71,6.2613]
[1721167828612,6.2597,159.75,159.7,62.2616]
[1721167828789,20.0,159.76,159.7,56.0]
[1721167828790,6.2608,159.73,159.7,56.0]
[1721167829107,6.2601,159.74,159.7,56.0]
[1721167829409,6.2606,159.73,159.7,56.0]
[1721167829624,6.2602,159.74,159.7,56.0]
[1721167829815,6.2602,159.74,159.7,62.2616]
[1721167830196,6.2598,159.75,159.7,56.0]
[1721167830388,13.25598656,159.9,159.7,56.0]
[1721167830389,12.4591,159.8,159.71,1.2522278]
[1721167830604,6.201,159.84,159.73,22.8522]
[1721167830805,6.2575,159.81,159.74,0.17]
[1721167830996,6.257,159.82,159.78,6.2585]
[1721167831196,6.257,159.82,159.77,6.2588]
[1721167831595,6.257,159.82,159.74,0.34]
[1721167831913,6.257,159.82,159.77,6.2589]
[1721167832121,6.2574,159.81,159.77,6.2589]
[1721167832297,6.2574,159.81,159.74,0.34]
[1721167832503,6.2585,159.79,159.73,22.8522]
[1721167832695,6.2586,159.78,159.73,22.8522]
[1721167832898,18.75,159.82,159.73,22.8522]
[1721167832899,6.2582,159.79,159.74,6.26]
[1721167833121,6.2586,159.78,159.73,29.1126]
[1721167833421,6.2585,159.79,159.73,6.2604]
[1721167833597,6.2585,159.79,159.74,6.2601]
[1721167833799,6.2586,159.78,159.74,6.2601]
[1721167834313,6.2595,159.76,159.71,6.2612]
[1721167834509,6.2598,159.75,159.7,62.2614]
[1721167834690,6.2601,159.74,159.7,56.0]
[1721167834890,6.2607,159.73,159.7,56.0]
[1721167835089,18.75,159.76,159.7,56.0]
[1721167835090,6.2613,159.71,159.7,56.0]
[1721167835515,34.4002,159.75,159.7,56.0]
[1721167835717,6.2609,159.73,159.7,56.0]
[1721167835901,26.261,159.72,159.7,56.0]
[1721167836104,20.0,159.72,159.7,56.0]
[1721167836307,40.16,159.75,159.7,62.2615]
[1721167836511,40.1584,159.79,159.74,6.2598]
[1721167836818,6.2597,159.76,159.71,6.2612]
[1721167837149,68.296,159.79,159.7,56.0]
[1721167837328,6.2594,159.76,159.71,6.2612]
[1721167837624,6.259,159.77,159.72,6.2609]
[1721167837797,6.259,159.77,159.7,56.0]
[1721167838001,6.2584,159.79,159.74,6.2598]
[1721167838599,40.1831,159.84,159.76,6.2592]
[1721167838901,6.2575,159.81,159.76,6.2592]
[1721167839929,6.2571,159.82,159.77,6.2589]
[1721167840619,6.2567,159.83,159.78,6.2585]
[1721167841007,26.2571,159.82,159.78,6.2585]
[1721167841323,20.0,159.82,159.76,6.259]
[1721167841625,6.2577,159.81,159.77,6.2589]
[1721167842031,6.2579,159.8,159.75,0.17]
[1721167842208,6.2582,159.79,159.7,78.3069]
[1721167842407,6.2582,159.79,159.75,6.2596]
[1721167842626,34.3935,159.82,159.7,78.3069]
[1721167842931,6.259,159.77,159.72,6.2608]
[1721167843230,6.2598,159.75,159.7,84.5686]
[1721167843411,34.3952,159.8,159.72,6.2607]
[1721167843611,20.0,159.79,159.7,78.3069]
[1721167843914,6.2599,159.75,159.7,71.9797]
[1721167844228,40.1613,159.71,159.7,56.0]
[1721167844411,78.9113,159.71,159.7,56.0]
[1721167844613,60.1613,159.71,159.7,56.0]
[1721167845834,16.189,159.74,159.7,56.0]
[1721167846133,6.261,159.72,159.7,56.0]
[1721167846314,6.2606,159.73,159.7,56.0]
[1721167846521,6.2602,159.74,159.7,62.2616]
[1721167846718,6.2602,159.74,159.7,56.0]
[1721167846912,6.2598,159.75,159.7,62.2617]
[1721167847123,6.2591,159.77,159.7,56.0]
[1721167847324,6.2585,159.79,159.71,1.59221723]
[1721167847710,31.0226,159.86,159.78,6.2582]
[1721167848101,6.2567,159.83,159.78,6.2582]
[1721167849656,6.2578,159.8,159.75,6.5322]
[1721167850015,6.2588,159.78,159.73,7.51186914]
[1721167850214,6.2582,159.79,159.73,1.25176914]
[1721167850409,6.2578,159.8,159.75,6.2594]
[1721167850740,6.2562,159.85,159.8,6.2575]
[1721167850923,6.2555,159.86,159.76,1.25179098]
[1721167851228,6.2555,159.86,159.77,1.25141464]
[1721167851531,6.2555,159.86,159.78,0.34]
[1721167851705,6.2555,159.86,159.78,1.59141614]
[1721167851906,6.2555,159.86,159.78,0.34]
[1721167852112,6.256,159.85,159.8,6.2577]
[1721167852323,6.2567,159.83,159.78,0.34]
[1721167852530,6.257,159.82,159.78,0.17]
[1721167852732,34.3886,159.87,159.78,0.17]
[1721167852938,34.3886,159.87,159.73,1.25150416]
[1721167853237,34.3886,159.87,159.78,6.2585]
[1721167853414,6.2574,159.81,159.72,16.0127]
[1721167853612,6.2574,159.81,159.73,1.25166012]
[1721167853941,6.2571,159.82,159.78,6.2584]
[1721167854114,6.2571,159.82,159.77,6.2589]
[1721167854516,6.2575,159.81,159.76,6.4292]
[1721167854837,6.257,159.82,159.76,0.17]
[1721167855030,18.75,159.84,159.72,16.0127]
[1721167855233,34.3901,159.85,159.73,0.34]
[1721167855439,6.2573,159.82,159.73,0.34]
[1721167855619,6.2573,159.82,159.77,6.2586]
[1721167856030,6.2573,159.82,159.73,0.34]
[1721167856344,6.2571,159.82,159.78,6.2585]
[1721167856658,20.0,159.86,159.73,11.5916927]
[1721167856947,6.2558,159.85,159.73,10.34]
[1721167857325,6.2556,159.86,159.82,6.2568]
[1721167857525,6.2556,159.86,159.81,6.2571]
[1721167857840,6.2551,159.87,159.83,6.2566]
[1721167858145,16.515,159.9,159.83,6.2566]
[1721167858343,16.515,159.9,159.82,6.2569]
[1721167858645,34.3864,159.89,159.79,6.0179]
[1721167859031,6.2559,159.85,159.8,6.2575]
[1721167859329,6.2555,159.86,159.81,6.2573]
[1721167859531,6.2555,159.86,159.82,6.2569]
[1721167859748,16.515,159.9,159.84,6.2561]
[1721167859749,6.2548,159.88,159.84,6.2561]
[1721167860123,16.515,159.9,159.79,6.0179]
[1721167860327,32.1503,159.9,159.81,6.257]
[1721167860526,6.2555,159.86,159.81,6.2571]
[1721167860759,6.2555,159.86,159.82,6.2569]
[1721167861054,6.2552,159.87,159.83,6.2566]
[1721167861860,65.1658,159.92,159.79,12.276]
[1721167862163,15.6381,159.87,159.77,6.2588]
[1721167862334,15.6422,159.83,159.76,15.4692]
[1721167862536,33.9,159.88,159.78,6.2585]
[1721167862722,6.2574,159.81,159.76,21.7282]
[1721167862926,6.2579,159.8,159.76,21.7282]
[1721167863127,6.2575,159.81,159.77,6.2589]
[1721167863351,6.2579,159.8,159.76,21.7284]
[1721167863748,6.2574,159.81,159.76,21.7284]
[1721167863941,6.2574,159.81,159.76,21.7285]
[1721167864134,18.75,159.83,159.71,283.5116]
[1721167864332,6.2585,159.79,159.75,6.2596]
[1721167864528,20.0,159.82,159.67,401.2]
[1721167864529,52.65,159.8,159.67,22.1131]
[1721167864731,52.65,159.8,159.69,6.262]
[1721167864732,6.2602,159.74,159.69,6.262]
[1721167865041,6.2612,159.72,159.67,28.3759]
[1721167865255,6.2613,159.71,159.66,6.2632]
[1721167865556,6.2608,159.73,159.68,6.2624]
[1721167865953,6.2609,159.72,159.68,6.2624]
[1721167866136,6.2609,159.72,159.67,6.2628]
[1721167866454,33.9,159.76,159.63,26.770797]
[1721167866626,20.0,159.75,159.63,16.770797]
[1721167867038,6.2605,159.73,159.68,6.2621]
[1721167867249,6.261,159.72,159.68,6.2621]
[1721167867629,6.2613,159.71,159.63,16.770797]
[1721167868246,25.0113,159.71,159.63,16.770797]
[1721167868446,45.0113,159.71,159.63,16.770797]
[1721167868655,45.0113,159.71,159.63,0.828697]
[1721167869162,6.264,159.65,159.63,0.828697]
[1721167869543,6.2634,159.66,159.63,0.828697]
[1721167869737,33.9,159.68,159.63,0.828697]
[1721167869946,20.0,159.67,159.63,0.828697]
[1721167870145,6.2635,159.66,159.63,0.828697]
[1721167870339,20.0,159.67,159.63,0.828697]
[1721167870567,6.264,159.64,159.63,0.828697]
[1721167870735,6.2637,159.65,159.63,0.828697]
[1721167870934,6.264,159.64,159.63,0.828697]
[1721167871829,20.0,159.67,159.63,0.828697]
[1721167872052,15.6517,159.73,159.63,0.828697]
[1721167872053,6.262,159.7,159.63,0.828697]
[1721167872234,33.9,159.73,159.63,0.828697]
[1721167872430,6.2622,159.69,159.64,6.2637]
[1721167872636,6.5245,159.75,159.64,15.0777]
[1721167872846,33.9,159.76,159.65,1.42247718]
[1721167873051,6.2601,159.74,159.69,6.262]
[1721167873262,33.9,159.76,159.66,6.0507]
[1721167873873,33.9,159.76,159.67,0.34]
[1721167874034,33.9,159.76,159.67,1.59228464]
[1721167874368,33.9,159.76,159.71,6.2613]
[1721167874539,33.9,159.76,159.7,6.2616]
[1721167874739,33.9,159.76,159.66,6.0507]
[1721167874948,33.9,159.76,159.66,12.3139]
[1721167874949,6.2614,159.71,159.66,12.3139]
[1721167875160,52.65,159.76,159.66,6.0507]
[1721167875332,6.2609,159.72,159.67,6.2626]
[1721167875529,6.262,159.7,159.65,6.2634]
[1721167875756,18.75,159.74,159.64,15.0777]
[1721167875959,6.2616,159.71,159.64,15.0777]
[1721167876143,6.2613,159.71,159.67,6.2628]
[1721167876335,6.2613,159.72,159.67,6.2627]
[1721167876665,54.3995,159.75,159.65,6.2633]
[1721167876862,54.3995,159.75,159.66,6.2632]
[1721167877161,6.2614,159.71,159.66,6.2632]
[1721167877530,6.2602,159.74,159.67,1.25259065]
[1721167877768,6.2602,159.74,159.67,6.2628]
[1721167877769,6.2613,159.71,159.67,6.2628]
[1721167877939,20.0,159.73,159.64,15.0777]
[1721167878134,6.2605,159.74,159.64,15.0777]
[1721167878340,6.2606,159.73,159.67,6.2625]
[1721167878642,6.2606,159.73,159.68,6.2624]
[1721167878842,6.2606,159.73,159.69,6.262]
[1721167879057,6.2606,159.73,159.68,6.2625]
[1721167879260,6.261,159.72,159.65,1.25240038]
[1721167879572,6.261,159.72,159.67,6.2628]
[1721167879746,52.65,159.76,159.65,1.25240038]
[1721167879747,6.2618,159.7,159.65,6.2634]
[1721167879954,6.2623,159.69,159.64,21.3416]
[1721167880349,6.2623,159.69,159.64,6.2639]
[1721167880749,15.6522,159.73,159.63,0.828697]
[1721167881052,6.2629,159.67,159.63,0.828697]
[1721167881842,6.2629,159.67,159.63,7.093097]
[1721167882056,6.2625,159.68,159.63,7.093097]
[1721167882367,6.264,159.64,159.63,0.828697]
[1721167882940,6.2623,159.69,159.63,0.828697]
[1721167883148,6.2618,159.7,159.63,0.828697]
[1721167883442,6.2632,159.67,159.63,0.828697]
[1721167883650,58.9624,159.71,159.63,0.828697]
[1721167883967,38.75,159.7,159.63,0.828697]
[1721167884346,6.264,159.65,159.63,0.828697]
[1721167884551,6.2634,159.66,159.63,0.828697]
[1721167884738,6.2633,159.66,159.63,0.828697]
[1721167884941,6.264,159.65,159.63,0.828697]
[1721167885155,38.75,159.7,159.63,0.828697]
[1721167885156,6.264,159.64,159.63,0.828697]
[1721167885755,1.25320338,159.66,159.47,203.06029738]
[1721167885955,56.00070338,159.66,159.48,10.0]
[1721167886468,6.2649,159.62,159.57,6.2667]
[1721167886771,6.2661,159.59,159.47,204.51088558]
[1721167886973,1.25320338,159.61,159.48,10.0]
[1721167887182,1.25320338,159.6,159.48,10.0]
[1721167887353,7.51880338,159.6,159.55,6.2675]
[1721167887753,6.2662,159.59,159.54,6.2679]
[1721167887955,1.25320338,159.58,159.55,6.2676]
[1721167888164,1.25320338,159.57,159.54,6.2679]
[1721167888354,7.52030338,159.57,159.51,6.269]
[1721167888550,1.25320338,159.56,159.5,6.2695]
[1721167888746,7.52050338,159.56,159.51,6.2691]
[1721167889279,6.2678,159.55,159.5,6.2695]
[1721167889464,1.25320338,159.54,159.5,6.2695]
[1721167889854,7.52120338,159.54,159.49,6.2699]
[1721167890359,1.25320338,159.53,159.49,6.2699]